lending/lending_fUSD_20250122
["ID","MTS","AMOUNT","RATE_DAILY","PERIOD"]
[349947559,1737529871919,-500.0,0.00021453,2]
[349947560,1737529871928,-500.0,0.00021453,2]
[349947561,1737529871937,-500.0,0.00021453,2]
[349947562,1737529871946,-500.0,0.00021453,2]
[349947563,1737529871955,-500.0,0.00021453,2]
[349947564,1737529871964,-500.0,0.00021453,2]
[349947565,1737529871973,-500.0,0.00021453,2]
[349947566,1737529871983,-500.0,0.00021453,2]
[349947567,1737529871991,-500.0,0.00021453,2]
[349947568,1737529872001,-500.0,0.00021453,2]
[349947569,1737529872010,-500.0,0.00021453,2]
[349947570,1737529872020,-500.0,0.00021453,2]
[349947571,1737529872031,-500.0,0.00021453,2]
[349947572,1737529872040,-500.0,0.00021453,2]
[349947573,1737529872050,-500.0,0.00021453,2]
[349947574,1737529872060,-500.0,0.00021453,2]
[349947575,1737529872070,-500.0,0.00021453,2]
[349947576,1737529872079,-500.0,0.00021453,2]
[349947577,1737529872088,-500.0,0.00021453,2]
[349947578,1737529872100,-500.0,0.00021453,2]
[349947579,1737529872110,-500.0,0.00021453,2]
[349947580,1737529872119,-500.0,0.00021453,2]
[349947581,1737529872128,-500.0,0.00021453,2]
[349947582,1737529872138,-821.0,0.00021453,2]
[349947583,1737529872147,-5440.0,0.00021463,7]
[349947584,1737529872158,-150.0,0.00021467,4]
[349947585,1737529872167,-150.0,0.00021467,4]
[349947586,1737529872177,-205.07867488,0.00021486,2]
[349947587,1737529872186,-580.16,0.00021493,2]
[349947588,1737529872196,-2110.0,0.000215,2]
[349947589,1737529872206,-1204.94056285,0.000215,3]
[349947590,1737529872215,-1000.0,0.00021522,2]
[349947591,1737529872225,-205.07867488,0.00021555,2]
[349947592,1737529872234,-1052.56547248,0.00021579,2]
[349947593,1737529872244,-156.2328181,0.00021617,2]
[349947594,1737529872254,-205.07867488,0.00021624,3]
[349947595,1737529872263,-1351.7713108,0.00021628,2]
[349947596,1737529872273,-718.6249783,0.00021628,2]
[349947597,1737529872283,-644.4752254,0.00021628,2]
[349947598,1737529872292,-500.0,0.0002163,2]
[349947599,1737529872302,-500.0,0.0002163,2]
[349947600,1737529872311,-500.0,0.0002163,2]
[349947601,1737529872320,-500.0,0.0002163,2]
[349947602,1737529872329,-580.16,0.0002163,2]
[349947603,1737529872339,-840.46,0.0002163,2]
[349947604,1737529872352,-500.0,0.0002163,2]
[349947605,1737529872361,-577.79217653,0.0002163,2]
[349947606,1737529872371,-269.36905345,0.0002163,2]
[349947607,1737529872380,-500.0,0.0002163,2]
[349947608,1737529872390,-500.0,0.0002163,2]
[349947609,1737529872399,-500.0,0.0002163,2]
[349947610,1737529872408,-500.0,0.0002163,2]
[349947611,1737529872419,-557.91,0.0002163,2]
[349947612,1737529872428,-500.0,0.0002163,2]
[349947613,1737529872438,-500.0,0.0002163,2]
[349947614,1737529872448,-500.0,0.0002163,2]
[349947615,1737529872458,-1119.81,0.0002163,2]
[349947616,1737529872467,-667.81,0.0002163,2]
[349947617,1737529872476,-500.0,0.0002163,2]
[349947618,1737529872486,-646.88,0.00021631,2]
[349947619,1737529872495,-500.0,0.00021631,2]
[349947620,1737529872504,-500.0,0.00021631,2]
[349947621,1737529872514,-590.43,0.00021631,2]
[349947622,1737529872527,-549.98,0.00021631,2]
[349947623,1737529872538,-810.63,0.00021631,2]
[349947624,1737529872549,-500.0,0.00021631,2]
[349947625,1737529872560,-500.0,0.00021631,2]
[349947626,1737529872569,-500.0,0.00021631,2]
[349947627,1737529872580,-969.87,0.00021631,2]
[349947628,1737529872592,-500.0,0.00021631,2]
[349947629,1737529872603,-1152.22,0.00021631,2]
[349947630,1737529872615,-211.25410194,0.00021631,2]
[349947631,1737529872624,-500.0,0.00021631,2]
[349947632,1737529872635,-567.82,0.00021631,2]
[349947633,1737529872646,-799.97,0.00021631,2]
[349947634,1737529872658,-606.7,0.00021631,2]
[349947635,1737529872669,-500.0,0.00021631,2]
[349947636,1737529872678,-500.0,0.00021631,2]
[349947637,1737529872688,-500.0,0.00021631,2]
[349947638,1737529872697,-500.0,0.00021631,2]
[349947639,1737529872708,-550.55,0.00021631,2]
[349947640,1737529872718,-500.0,0.00021631,2]
[349947641,1737529872729,-775.8,0.00021631,2]
[349947642,1737529872739,-555.58,0.00021631,2]
[349947643,1737529872750,-1032.89,0.00021631,2]
[349947644,1737529872761,-1152.75,0.00021631,2]
[349947645,1737529872770,-500.0,0.00021631,2]
[349947646,1737529872779,-500.0,0.00021631,2]
[349947647,1737529872788,-500.0,0.00021631,2]
[349947648,1737529872797,-500.0,0.00021631,2]
[349947649,1737529872806,-500.0,0.00021631,2]
[349947650,1737529872816,-500.0,0.00021631,2]
[349947651,1737529872826,-697.99,0.00021631,2]
[349947652,1737529872837,-1141.71,0.00021631,2]
[349947653,1737529872848,-1233.73,0.00021631,2]
[349947654,1737529872859,-542.63,0.00021631,2]
[349947655,1737529872868,-712.69,0.00021631,2]
[349947656,1737529872877,-1327.92,0.00021631,2]
[349947657,1737529872886,-649.24,0.00021631,2]
[349947658,1737529872895,-1423.77,0.00021631,2]
[349947659,1737529872904,-500.0,0.00021631,2]
[349947660,1737529872914,-500.0,0.00021631,2]
[349947661,1737529872923,-638.92,0.00021631,2]
[349947662,1737529872933,-818.33,0.00021631,2]
[349947663,1737529872943,-1425.64,0.00021631,2]
[349947664,1737529872953,-500.0,0.00021631,2]
[349947665,1737529872963,-500.0,0.00021631,2]
[349947666,1737529872974,-944.74,0.00021631,2]
[349947667,1737529872984,-500.0,0.00021631,2]
[349947668,1737529872993,-1159.36,0.00021631,2]
[349947669,1737529873003,-572.47,0.00021631,2]
[349947670,1737529873012,-500.0,0.00021631,2]
[349947671,1737529873025,-1134.67,0.00021631,2]
[349947672,1737529873035,-500.0,0.00021631,2]
[349947673,1737529873046,-543.06,0.00021631,2]
[349947674,1737529873057,-500.0,0.00021631,2]
[349947675,1737529873067,-500.0,0.00021631,2]
[349947676,1737529873076,-757.85,0.00021631,2]
[349947677,1737529873085,-500.0,0.00021631,2]
[349947678,1737529873094,-500.0,0.00021631,2]
[349947679,1737529873105,-1581.43,0.00021631,2]
[349947680,1737529873115,-1021.03,0.00021631,2]
[349947681,1737529873125,-522.18,0.00021631,2]
[349947682,1737529873134,-1732.87,0.00021631,2]
[349947683,1737529873144,-736.28,0.00021631,2]
[349947684,1737529873154,-694.23,0.00021631,2]
[349947685,1737529873164,-654.06,0.00021631,2]
[349947686,1737529873174,-500.0,0.00021631,2]
[349947687,1737529873184,-500.0,0.00021631,2]
[349947688,1737529873193,-1211.07,0.00021631,2]
[349947689,1737529873202,-500.0,0.00021631,2]
[349947690,1737529873213,-500.0,0.00021631,2]
[349947691,1737529873223,-500.0,0.00021631,2]
[349947692,1737529873232,-500.0,0.00021631,2]
[349947693,1737529873242,-661.66,0.00021631,2]
[349947694,1737529873251,-500.0,0.00021631,2]
[349947695,1737529873260,-500.0,0.00021631,2]
[349947696,1737529873269,-866.42,0.00021631,2]
[349947697,1737529873279,-500.0,0.00021631,2]
[349947698,1737529873288,-500.0,0.00021631,2]
[349947699,1737529873298,-1183.63,0.00021631,2]
[349947700,1737529873307,-1193.16,0.00021631,2]
[349947701,1737529873316,-500.0,0.00021631,2]
[349947702,1737529873326,-500.0,0.00021631,2]
[349947703,1737529873335,-500.0,0.00021631,2]
[349947704,1737529873345,-500.0,0.00021631,2]
[349947705,1737529873354,-708.55,0.00021631,2]
[349947706,1737529873363,-1284.7,0.00021631,2]
[349947707,1737529873373,-374.98410598,0.00021631,2]
[349947708,1737529873383,-500.0,0.00021631,2]
[349947709,1737529873392,-500.0,0.00021631,2]
[349947710,1737529873401,-937.43,0.00021631,2]
[349947711,1737529873411,-1017.92,0.00021631,2]
[349947712,1737529873421,-1193.29,0.00021631,2]
[349947713,1737529873431,-500.0,0.00021631,2]
[349947714,1737529873440,-500.0,0.00021631,2]
[349947715,1737529873450,-1122.95,0.00021631,2]
[349947716,1737529873459,-1359.17,0.00021631,2]
[349947717,1737529873469,-821.95,0.00021631,2]
[349947718,1737529873478,-795.35,0.00021631,2]
[349947719,1737529873488,-750.45,0.00021631,2]
[349947720,1737529873497,-500.0,0.00021631,2]
[349947721,1737529873507,-920.57,0.00021631,2]
[349947722,1737529873516,-500.0,0.00021631,2]
[349947723,1737529873526,-500.0,0.00021631,2]
[349947724,1737529873535,-1819.89,0.00021631,2]
[349947725,1737529873544,-309.21,0.00021631,2]
[349947726,1737529873554,-1136.19,0.00021631,2]
[349947727,1737529873563,-500.0,0.00021631,2]
[349947728,1737529873573,-1148.88,0.00021631,2]
[349947729,1737529873582,-513.27,0.00021631,2]
[349947730,1737529873591,-953.42,0.00021631,2]
[349947731,1737529873600,-500.0,0.00021631,2]
[349947732,1737529873609,-653.89,0.00021631,2]
[349947733,1737529873619,-2074.69,0.00021631,2]
[349947734,1737529873628,-500.0,0.00021631,2]
[349947735,1737529873638,-1178.81,0.00021631,2]
[349947736,1737529873647,-973.35,0.00021631,2]
[349947737,1737529873656,-500.0,0.00021631,2]
[349947738,1737529873665,-3313.27,0.00021631,2]
[349947739,1737529873674,-609.31,0.00021631,2]
[349947740,1737529873685,-500.0,0.00021631,2]
[349947741,1737529873694,-575.33,0.00021631,2]
[349947742,1737529873704,-708.86,0.00021631,2]
[349947743,1737529873713,-1956.81,0.00021631,2]
[349947744,1737529873723,-500.0,0.00021631,2]
[349947745,1737529873732,-1484.41,0.00021631,2]
[349947746,1737529873741,-1469.71,0.00021631,2]
[349947747,1737529873750,-2981.83,0.00021631,2]
[349947748,1737529873759,-2775.38,0.00021631,2]
[349947749,1737529873768,-1922.66,0.00021631,2]
[349947750,1737529873778,-1248.67,0.00021631,2]
[349947751,1737529873787,-672.01,0.00021631,2]
[349947752,1737529873795,-3316.5,0.00021631,2]
[349947753,1737529873805,-500.0,0.00021631,2]
[349947754,1737529873814,-914.05,0.00021631,2]
[349947755,1737529873824,-1021.47,0.00021631,2]
[349947756,1737529873833,-4783.23,0.00021631,2]
[349947757,1737529873843,-1593.19,0.00021631,2]
[349947758,1737529873853,-500.0,0.00021631,2]
[349947759,1737529873862,-709.2,0.00021631,2]
[349947760,1737529873872,-10193.0,0.00021631,2]
[349947761,1737529873997,-316.97948842,0.00021631,2]
[349947762,1737529874007,-1341.19,0.00021631,2]
[349947763,1737529874017,-6190.52,0.00021631,2]
[349947764,1737529874031,-5688.36,0.00021631,2]
[349947765,1737529874040,-500.0,0.00021631,2]
[349947766,1737529874050,-1341.24,0.00021631,2]
[349947767,1737529874060,-2516.76,0.00021631,2]
[349947768,1737529874070,-500.0,0.00021631,2]
[349947769,1737529874080,-1015.75,0.00021631,2]
[349947770,1737529874089,-636.88,0.00021631,2]
[349947771,1737529874099,-4247.11,0.00021631,2]
[349947772,1737529874110,-702.79,0.00021631,2]
[349947773,1737529874119,-500.0,0.00021631,2]
[349947774,1737529874129,-848.47,0.00021631,2]
[349947775,1737529874139,-908.52,0.00021631,2]
[349947776,1737529874147,-380.41517449,0.00021631,2]
[349947777,1737529874157,-1723.59,0.00021631,2]
[349947778,1737529874167,-3079.06,0.00021631,2]
[349947779,1737529874177,-619.39,0.00021631,2]
[349947780,1737529874188,-3591.78,0.00021631,2]
[349947781,1737529874197,-2538.2,0.00021631,2]
[349947782,1737529874207,-500.0,0.00021631,2]
[349947783,1737529874217,-500.0,0.00021631,2]
[349947784,1737529874228,-500.0,0.00021631,2]
[349947785,1737529874239,-966.25,0.00021631,2]
[349947786,1737529874250,-500.0,0.00021631,2]
[349947787,1737529874260,-717.54,0.00021631,2]
[349947788,1737529874269,-1456.38,0.00021631,2]
[349947789,1737529874279,-500.0,0.00021631,2]
[349947790,1737529874289,-1822.7,0.00021631,2]
[349947791,1737529874299,-526.05,0.00021631,2]
[349947792,1737529874308,-3479.05,0.00021631,2]
[349947793,1737529874318,-860.21,0.00021631,2]
[349947794,1737529874327,-903.51,0.00021631,2]
[349947795,1737529874338,-1992.09,0.00021631,2]
[349947796,1737529874347,-500.0,0.00021631,2]
[349947797,1737529874357,-1529.61,0.00021631,2]
[349947798,1737529874366,-3354.94,0.00021631,2]
[349947799,1737529874376,-560.81,0.00021631,2]
[349947800,1737529874386,-1090.16,0.00021631,2]
[349947801,1737529874396,-500.0,0.00021631,2]
[349947802,1737529874406,-776.21,0.00021631,2]
[349947803,1737529874415,-1000.0,0.00021631,2]
[349947804,1737529874425,-1051.85,0.00021631,2]
[349947805,1737529874435,-770.14,0.00021631,2]
[349947806,1737529874444,-500.0,0.00021631,2]
[349947807,1737529874453,-847.9,0.00021631,2]
[349947808,1737529874463,-500.04,0.00021631,2]
[349947809,1737529874472,-500.0,0.00021632,2]
[349947810,1737529874482,-500.0,0.00021632,2]
[349947811,1737529874492,-500.0,0.00021632,2]
[349947812,1737529874502,-542.26,0.00021632,2]
[349947813,1737529874513,-500.0,0.00021632,2]
[349947814,1737529874523,-687.88,0.00021632,2]
[349947815,1737529874532,-500.0,0.00021632,2]
[349947816,1737529874543,-500.0,0.00021632,2]
[349947817,1737529874554,-500.0,0.00021632,2]
[349947818,1737529874564,-500.0,0.00021632,2]
[349947819,1737529874573,-547.45933333,0.00021632,2]
[349947820,1737529874583,-705.63,0.00021632,2]
[349947821,1737529874594,-500.0,0.00021632,2]
[349947822,1737529874603,-500.0,0.00021632,2]
[349947823,1737529874613,-500.0,0.00021632,2]
[349947824,1737529874625,-500.0,0.00021632,2]
[349947825,1737529874638,-638.86,0.00021632,2]
[349947826,1737529874649,-500.0,0.00021632,2]
[349947827,1737529874658,-500.0,0.00021632,2]
[349947828,1737529874667,-500.0,0.00021632,2]
[349947829,1737529874676,-517.55,0.00021632,2]
[349947830,1737529874686,-500.0,0.00021632,2]
[349947831,1737529874695,-714.2,0.00021632,2]
[349947832,1737529874704,-500.0,0.00021632,2]
[349947833,1737529874713,-500.0,0.00021632,2]
[349947834,1737529874723,-862.22,0.00021632,2]
[349947835,1737529874732,-598.82,0.00021632,2]
[349947836,1737529874741,-1030.51,0.00021632,2]
[349947837,1737529874751,-500.0,0.00021632,2]
[349947838,1737529874760,-1375.23,0.00021632,2]
[349947839,1737529874768,-533.65,0.00021632,2]
[349947840,1737529874778,-763.67,0.00021632,2]
[349947841,1737529874787,-500.0,0.00021632,2]
[349947842,1737529874798,-736.55,0.00021632,2]
[349947843,1737529874807,-500.0,0.00021632,2]
[349947844,1737529874819,-500.0,0.00021632,2]
[349947845,1737529874829,-500.0,0.00021632,2]
[349947846,1737529874839,-500.0,0.00021632,2]
[349947847,1737529874851,-500.0,0.00021632,2]
[349947848,1737529874861,-500.0,0.00021632,2]
[349947849,1737529874871,-1550.32,0.00021632,2]
[349947850,1737529874880,-906.23,0.00021632,2]
[349947851,1737529874890,-1240.63,0.00021632,2]
[349947852,1737529874899,-500.0,0.00021632,2]
[349947853,1737529874909,-955.97,0.00021632,2]
[349947854,1737529874919,-758.19,0.00021632,2]
[349947855,1737529874929,-500.0,0.00021632,2]
[349947856,1737529874938,-500.0,0.00021632,2]
[349947857,1737529874949,-915.15,0.00021632,2]
[349947858,1737529874959,-500.0,0.00021632,2]
[349947859,1737529874970,-609.31804206,0.00021632,2]
[349947860,1737529874980,-500.0,0.00021632,2]
[349947861,1737529874990,-545.1247888,0.00021632,2]
[349947862,1737529875000,-500.0,0.00021632,2]
[349947863,1737529875012,-2855.53,0.00021632,2]
[349947864,1737529875025,-2566.89,0.00021632,2]
[349947865,1737529875036,-200.7626241,0.00021639,2]
[349947866,1737529875047,-500.0,0.00021643,2]
[349947867,1737529875059,-1849.23,0.00021643,2]
[349947868,1737529875069,-958.45,0.00021643,2]
[349947869,1737529875079,-2595.22,0.00021643,2]
[349947870,1737529875089,-1488.27,0.00021643,2]
[349947871,1737529875099,-3225.59,0.00021643,2]
[349947872,1737529875109,-1733.274758,0.00021643,2]
[349947873,1737529875119,-5301.98,0.00021643,2]
[349947874,1737529875128,-2429.15,0.00021643,2]
[349947875,1737529875138,-1239.25,0.00021643,2]
[349947876,1737529875148,-1238.73,0.00021643,2]
[349947877,1737529875160,-500.0,0.00021643,2]
[349947878,1737529875169,-1170.583413,0.00021643,2]
[349947879,1737529875179,-500.0,0.00021643,2]
[349947880,1737529875189,-1699.68,0.00021643,2]
[349947881,1737529875199,-2493.36,0.00021643,2]
[349947882,1737529875211,-2152.93,0.00021643,2]
[349947883,1737529875220,-500.0,0.00021643,2]
[349947884,1737529875230,-3276.6,0.00021643,2]
[349947885,1737529875240,-1165.12,0.00021643,2]
[349947886,1737529875251,-1394.36,0.00021643,2]
[349947887,1737529875261,-809.38,0.00021643,2]
[349947888,1737529875272,-1475.31,0.00021643,2]
[349947889,1737529875282,-688.14,0.00021643,2]
[349947890,1737529875292,-500.0,0.00021643,2]
[349947891,1737529875302,-4786.95,0.00021643,2]
[349947892,1737529875312,-1695.25,0.00021643,2]
[349947893,1737529875322,-1472.15,0.00021643,2]
[349947894,1737529875331,-3787.07,0.00021643,2]
[349947895,1737529875341,-1234.08,0.00021643,2]
[349947896,1737529875352,-1624.99,0.00021643,2]
[349947897,1737529875362,-1499.85,0.00021643,2]
[349947898,1737529875371,-1816.57,0.00021643,2]
[349947899,1737529875381,-906.98,0.00021643,2]
[349947900,1737529875392,-2331.61,0.00021643,2]
[349947901,1737529875402,-1917.72,0.00021643,2]
[349947902,1737529875411,-1866.02,0.00021643,2]
[349947903,1737529875421,-691.42,0.00021643,2]
[349947904,1737529875431,-1206.34,0.00021643,2]
[349947905,1737529875440,-500.0,0.00021643,2]
[349947906,1737529875450,-2875.88,0.00021643,2]
[349947907,1737529875459,-1289.63,0.00021643,2]
[349947908,1737529875469,-3720.26,0.00021643,2]
[349947909,1737529875479,-2211.76,0.00021643,2]
[349947910,1737529875489,-1958.37,0.00021643,2]
[349947911,1737529875498,-3222.96,0.00021643,2]
[349947912,1737529875508,-4970.02,0.00021643,2]
[349947913,1737529875518,-1265.23,0.00021643,2]
[349947914,1737529875529,-1678.79,0.00021643,2]
[349947915,1737529875539,-3887.04,0.00021643,2]
[349947916,1737529875548,-1716.78,0.00021643,2]
[349947917,1737529875558,-500.0,0.00021643,2]
[349947918,1737529875569,-500.0,0.00021643,2]
[349947919,1737529875578,-780.76,0.00021643,2]
[349947920,1737529875587,-6061.4,0.00021643,2]
[349947921,1737529875597,-500.0,0.00021643,2]
[349947922,1737529875607,-864.5,0.00021643,2]
[349947923,1737529875617,-1204.94,0.00021643,2]
[349947924,1737529875626,-1252.28,0.00021685,7]
[349947925,1737529875636,-1252.28,0.00021685,7]
[349947926,1737529875645,-206.0,0.0002169,2]
[349947927,1737529875655,-208.0,0.0002169,2]
[349947928,1737529875665,-205.07867488,0.00021693,3]
[349947929,1737529875674,-2231.44,0.000217,2]
[349947930,1737529875684,-150.0,0.00021722,4]
[349947931,1737529875694,-205.07867488,0.00021762,3]
[349947932,1737529875704,-580.16,0.00021767,2]
[349947933,1737529875713,-1501.7198069,0.000218,2]
[349947934,1737529875723,-3688.9978,0.000218,2]
[349947935,1737529875733,-205.07867488,0.00021831,3]
[349947936,1737529875742,-952.46,0.0002185,3]
[349947937,1737529875752,-150.0,0.0002185,4]
[349947938,1737529875761,-152.0,0.00021863,3]
[349947939,1737529875770,-500.0,0.00021888,14]
[349947940,1737529875780,-500.0,0.00021889,16]
[349947941,1737529875790,-178.22,0.0002189,2]
[349947942,1737529875800,-433.07022453,0.000219,2]
[349947943,1737529875810,-2000.0,0.000219,2]
[349947944,1737529875820,-1844.732,0.000219,2]
[349947945,1737529875830,-376.43470905,0.000219,2]
[349947946,1737529875840,-205.07867488,0.000219,3]
[349947947,1737529875849,-500.0,0.00021904,2]
[349947948,1737529875859,-500.0,0.00021904,2]
[349947949,1737529875868,-500.0,0.00021904,2]
[349947950,1737529875988,-500.0,0.00021904,2]
[349947951,1737529875998,-580.16,0.00021904,2]
[349947952,1737529876008,-840.46,0.00021904,2]
[349947953,1737529876022,-500.0,0.00021904,2]
[349947954,1737529876034,-538.78387247,0.00021904,2]
[349947955,1737529876044,-500.0,0.00021904,2]
[349947956,1737529876053,-500.0,0.00021904,2]
[349947957,1737529876063,-500.0,0.00021904,2]
[349947958,1737529876075,-557.91,0.00021904,2]
[349947959,1737529876085,-500.0,0.00021904,2]
[349947960,1737529876095,-500.0,0.00021904,2]
[349947961,1737529876106,-500.0,0.00021904,2]
[349947962,1737529876115,-1119.81,0.00021904,2]
[349947963,1737529876125,-667.81,0.00021904,2]
[349947964,1737529876135,-500.0,0.00021904,2]
[349947965,1737529876144,-646.88,0.00021905,2]
[349947966,1737529876154,-500.0,0.00021905,2]
[349947967,1737529876164,-473.77125836,0.00021905,2]
[349947968,1737529876173,-590.43,0.00021905,2]
[349947969,1737529876183,-549.98,0.00021905,2]
[349947970,1737529876193,-810.63,0.00021905,2]
[349947971,1737529876203,-500.0,0.00021905,2]
[349947972,1737529876213,-500.0,0.00021905,2]
[349947973,1737529876223,-500.0,0.00021905,2]
[349947974,1737529876232,-969.87,0.00021905,2]
[349947975,1737529876243,-500.0,0.00021905,2]
[349947976,1737529876253,-1152.22,0.00021905,2]
[349947977,1737529876263,-500.0,0.00021905,2]
[349947978,1737529876272,-567.82,0.00021905,2]
[349947979,1737529876282,-799.97,0.00021905,2]
[349947980,1737529876292,-606.7,0.00021905,2]
[349947981,1737529876301,-500.0,0.00021905,2]
[349947982,1737529876311,-500.0,0.00021905,2]
[349947983,1737529876319,-500.0,0.00021905,2]
[349947984,1737529876328,-500.0,0.00021905,2]
[349947985,1737529876339,-550.55,0.00021905,2]
[349947986,1737529876348,-448.04409561,0.00021905,2]
[349947987,1737529876358,-775.8,0.00021905,2]
[349947988,1737529876368,-555.58,0.00021905,2]
[349947989,1737529876378,-1032.89,0.00021905,2]
[349947990,1737529876388,-1152.75,0.00021905,2]
[349947991,1737529876398,-500.0,0.00021905,2]
[349947992,1737529876408,-500.0,0.00021905,2]
[349947993,1737529876418,-529.43230261,0.00021905,2]
[349947994,1737529876428,-500.0,0.00021905,2]
[349947995,1737529876437,-500.0,0.00021905,2]
[349947996,1737529876447,-500.0,0.00021905,2]
[349947997,1737529876457,-697.99,0.00021905,2]
[349947998,1737529876467,-1141.71,0.00021905,2]
[349947999,1737529876477,-1233.73,0.00021905,2]
[349948000,1737529876487,-542.63,0.00021905,2]
[349948001,1737529876496,-712.69,0.00021905,2]
[349948002,1737529876506,-1327.92,0.00021905,2]
[349948003,1737529876516,-649.24,0.00021905,2]
[349948004,1737529876526,-1423.77,0.00021905,2]
[349948005,1737529876536,-500.0,0.00021905,2]
[349948006,1737529876545,-500.0,0.00021905,2]
[349948007,1737529876555,-638.92,0.00021905,2]
[349948008,1737529876564,-818.33,0.00021905,2]
[349948009,1737529876574,-1425.64,0.00021905,2]
[349948010,1737529876584,-500.0,0.00021905,2]
[349948011,1737529876594,-500.0,0.00021905,2]
[349948012,1737529876603,-944.74,0.00021905,2]
[349948013,1737529876613,-500.0,0.00021905,2]
[349948014,1737529876623,-1159.36,0.00021905,2]
[349948015,1737529876633,-572.47,0.00021905,2]
[349948016,1737529876643,-500.0,0.00021905,2]
[349948017,1737529876653,-1134.67,0.00021905,2]
[349948018,1737529876663,-500.0,0.00021905,2]
[349948019,1737529876673,-543.06,0.00021905,2]
[349948020,1737529876683,-500.0,0.00021905,2]
[349948021,1737529876692,-500.0,0.00021905,2]
[349948022,1737529876701,-757.85,0.00021905,2]
[349948023,1737529876711,-500.0,0.00021905,2]
[349948024,1737529876720,-500.0,0.00021905,2]
[349948025,1737529876729,-1581.43,0.00021905,2]
[349948026,1737529876739,-1021.03,0.00021905,2]
[349948027,1737529876748,-522.18,0.00021905,2]
[349948028,1737529876758,-1732.87,0.00021905,2]
[349948029,1737529876767,-736.28,0.00021905,2]
[349948030,1737529876778,-694.23,0.00021905,2]
[349948031,1737529876788,-654.06,0.00021905,2]
[349948032,1737529876798,-500.0,0.00021905,2]
[349948033,1737529876807,-389.32092998,0.00021905,2]
[349948034,1737529876817,-1211.07,0.00021905,2]
[349948035,1737529876826,-500.0,0.00021905,2]
[349948036,1737529876836,-500.0,0.00021905,2]
[349948037,1737529876846,-500.0,0.00021905,2]
[349948038,1737529876856,-500.0,0.00021905,2]
[349948039,1737529876866,-661.66,0.00021905,2]
[349948040,1737529876875,-500.0,0.00021905,2]
[349948041,1737529876885,-500.0,0.00021905,2]
[349948042,1737529876894,-866.42,0.00021905,2]
[349948043,1737529876904,-500.0,0.00021905,2]
[349948044,1737529876914,-500.0,0.00021905,2]
[349948045,1737529876923,-1183.63,0.00021905,2]
[349948046,1737529876935,-500.0,0.00021905,2]
[349948047,1737529876944,-1193.16,0.00021905,2]
[349948048,1737529876953,-500.0,0.00021905,2]
[349948049,1737529876962,-500.0,0.00021905,2]
[349948050,1737529876972,-500.0,0.00021905,2]
[349948051,1737529876981,-708.55,0.00021905,2]
[349948052,1737529876991,-1284.7,0.00021905,2]
[349948053,1737529877001,-500.0,0.00021905,2]
[349948054,1737529877011,-500.0,0.00021905,2]
[349948055,1737529877021,-937.43,0.00021905,2]
[349948056,1737529877034,-1017.92,0.00021905,2]
[349948057,1737529877044,-1193.29,0.00021905,2]
[349948058,1737529877054,-500.0,0.00021905,2]